Cogmind - Beta 13 @@@ ROGUE MODE // 2024.05.09 @ 13:04:10 Player: P9H Result: Destroyed by D-53 Grenadier with Mini Grenade Launcher Performance ------------- Evolutions (0) 0 Regions Visited (2) 400 Robots Destroyed (8) 40 Value Destroyed (206) 206 Prototype IDs (0) 0 Alien Tech Used (0) 0 Bonus (-35) -35 TOTAL SCORE: 611 Bonus ------- Friendly Fire -35 Cogmind --------- Core Integrity 0/250 Matter 299/300 Energy 250/250 System Corruption 0% Temperature Cool (0) Movement Walking (680) Ox8 Location -10/Mines Parts ------- > --- POWER (1) -------- Ion Engine > --- PROPULSION (2) --- Aluminum Leg > --- UTILITY (2) ------ Huge Storage Unit Targeting Computer > --- WEAPON (2) ------- (None) > --- INVENTORY (25) --- Light Ion Engine Light Treads Light Treads Wheel Compact Wheel Compact Matter Pod (150) Targeting Computer Medium Armor Plating Medium Armor Plating Medium Armor Plating Light Assault Rifle Peak State ------------ > --- POWER ------------ Ion Engine > --- PROPULSION ------- Aluminum Leg Aluminum Leg > --- UTILITY ---------- Small Storage Unit Medium Armor Plating > --- WEAPON ----------- Medium Laser Light Assault Rifle > --- INVENTORY -------- Light Ion Engine Light Treads Light Treads Wheel Compact Wheel Medium Armor Plating Medium Armor Plating Medium Laser [Rating: 9] Favorites ----------- Power Ion Engine Engine Ion Engine Propulsion Aluminum Leg Leg Aluminum Leg Wheel Wheel Utility Small Storage Unit Storage Small Storage Unit Processor Targeting Computer Protection Medium Armor Plating Weapon Grenade Launcher Energy Gun Medium Laser Ballistic Gun Light Assault Rifle Launcher Grenade Launcher Build | -11 -10 -10 ------- Run | Yrd Mat Min Slots Evolved . | . . . Power . | . . . Propulsion . | . . . Utility . | . . . Weapon . | . . . Parts Attached 14 | 7 2 5 Power 1 | 1 . . Engine 1 | 1 . . Core . | . . . Reactor . | . . . Propulsion 3 | 3 . . Treads . | . . . Leg 2 | 2 . . Wheel 1 | 1 . . Hover . | . . . Flight . | . . . Utility 5 | 1 1 3 Device . | . . . Storage 3 | 1 . 2 Processor 1 | . . 1 Hackware . | . . . Protection 1 | . 1 . Artifact . | . . . Weapon 5 | 2 1 2 Energy Gun 1 | 1 . . Energy Cannon . | . . . Ballistic Gun 1 | 1 . . Ballistic Cannon . | . . . Launcher 3 | . 1 2 Special Weapon . | . . . Impact Weapon . | . . . Slashing Weapon . | . . . Piercing Weapon . | . . . Special Melee Weapon . | . . . Unidentified Prototypes . | . . . Parts Lost 3 | . . 3 Power . | . . . Propulsion 1 | . . 1 Utility . | . . . Weapon 2 | . . 2 Highest Loss Streak 3 | . . 3 To Critical Strikes . | . . . Average Slot Usage (%) 99 | . 98 99 Engine 14 | . 14 14 Leg 27 | . 28 27 Storage 14 | . 14 14 Processor 8 | . . 10 Protection 5 | . 12 3 Energy Gun 1 | . 5 . Ballistic Gun 10 | . 14 9 Launcher 15 | . 8 18 Naked Turns . | . . . Heaviest Build 92 | 13 21 92 Greatest Support 20 | 10 20 20 Greatest Overweight (x) 8 | 1 1 8 Average Overweight (x) . | . . . Largest Inventory Capacity 25 | 8 8 25 Average Capacity 11 | 7 8 13 Most Carried 11 | 8 8 11 Average Carried 8 | 5 7 9 Final Capacity 25 | 8 8 25 Final Carried 11 | 6 8 11 Class Distribution -------------------- 100% | Mutant Dominant Class ---------------- Mutant | -10/Materials Mutant | -10/Mines Resources | -11 -10 -10 ----------- Run | Yrd Mat Min Matter Collected 491 | 267 5 219 Remotely . | . . . Salvage Created 131 | . 116 15 Parts 11 | . 8 3 Haulers Intercepted . | . . . Recyclers Shooed . | . . . Parts Field Recycled . | . . . Retrieved Matter . | . . . Parts Self-Destructed . | . . . Prevented . | . . . Kills | -11 -10 -10 ------- Run | Yrd Mat Min Combat Hostiles Destroyed 4 | . 4 . Guns 1 | . 1 . AOE 3 | . 3 . Classes Destroyed 4 | . 3 1 Worker 2 | . 1 1 Builder 1 | . 1 . Tunneler 1 | . . 1 Grunt 4 | . 4 . Best Kill Streak 5 | . 5 2 Combat Bots Only 4 | . 4 . Max Kills in Single Turn 2 | . 2 2 Gunslinging . | . . . Exploded 1 | . 1 . Melee . | . . . Uniques/NPCs Destroyed . | . . . Combat | -11 -10 -10 -------- Run | Yrd Mat Min Hostile Shots Fired 21 | . 9 12 Missed 2 | . 2 . Damage Taken 677 | . 209 468 Core 262 | . 87 175 Absorbed by Shields . | . . . Core Remaining (%) 100 | 100 . . Volleys Fired 16 | . 15 1 Largest 2 | . 2 1 Hottest 50 | . 50 33 Shots Fired 29 | . 28 1 Gun 15 | . 15 . Cannon . | . . . Launcher 14 | . 13 1 Special . | . . . Kinetic 15 | . 15 . Thermal . | . . . Explosive 14 | . 13 1 Electromagnetic . | . . . Robot Hit Streak 5 | . 5 2 Robot Miss Streak 1 | . 1 . Penetration Max . | . . . Secondary Targets . | . . . Shots Hit Robots 9 | . 8 1 Core Hits 18 | . 14 4 Critical Kills . | . . . Critical Parts Destroyed . | . . . Critical Strikes . | . . . Melee Attacks . | . . . Impact . | . . . Slashing . | . . . Piercing . | . . . Sneak Attacks . | . . . Combat Hostiles . | . . . Follow-up Attacks . | . . . Damage Inflicted 607 | . 505 102 Guns 38 | . 38 . Cannons . | . . . Explosions 560 | . 467 93 Melee . | . . . Ramming 9 | . . 9 Kinetic 38 | . 38 . Thermal 2 | . 2 . Explosive 558 | . 465 93 Electromagnetic . | . . . Impact . | . . . Slashing . | . . . Piercing . | . . . Highest Corruption . | . . . Average Corruption . | . . . Corruption Purged . | . . . Corruption Blocked . | . . . Overload Shots . | . . . Overflow Damage . | . . . Projectiles . | . . . Explosions . | . . . Melee . | . . . Knockbacks . | . . . Impact . | . . . Kinetic . | . . . Secondary . | . . . Self-Inflicted Damage 103 | . 103 . Shots 2 | . 2 . Rammed . | . . . Targets Rammed 2 | . . 2 Kicked 2 | . . 2 Crushed . | . . . Highest Temperature 64 | . 64 . Average Temperature 24 | . 24 . Received Heat Transfer 80 | . 60 20 Siege Activations . | . . . Robots Corrupted . | . . . Combat Hostiles . | . . . Parts Fried . | . . . Impact Corruptions . | . . . Robots Melted . | . . . Combat Hostiles . | . . . Parts Melted . | . . . Heat Transferred 50 | . 50 . Parts Sabotaged . | . . . Parts Stolen . | . . . Parts Stripped . | . . . Power Chain Reactions . | . . . Alert | -11 -10 -10 ------- Run | Yrd Mat Min Peak Influence 249 | . 249 96 Initial 96 | . . 96 Average 64 | . 124 53 Maximum Alert Level 1 | . 1 . Low Security (%) 91 | 100 60 100 Level 1 8 | . 39 . Level 2 . | . . . Level 3 . | . . . Level 4 . | . . . Level 5 . | . . . High Security . | . . . Max Security . | . . . Squads Dispatched 1 | . 1 . Investigation . | . . . Extermination . | . . . Reinforcement 1 | . 1 . Assault . | . . . Garrison . | . . . Intercept . | . . . Searches Triggered . | . . . Construction Impeded . | . . . Haulers Reinforced . | . . . Active Scanning Responses . | . . . Cargo Convoy Interrupts . | . . . Stealth | -11 -10 -10 --------- Run | Yrd Mat Min Distress Signals 1 | . 1 . Communications Jammed . | . . . Distress Signals . | . . . Times Spotted 30 | . 8 22 Peak Tracking Total 15 | . 3 15 Tactical Retreats 1 | . 1 . Traps | -11 -10 -10 ------- Run | Yrd Mat Min Traps Triggered . | . . . Indirectly . | . . . Trap Hack Attempts . | . . . Triggered . | . . . Disarmed . | . . . Reprogrammed . | . . . Reused . | . . . Traps Extracted . | . . . Installed . | . . . Triggered . | . . . Machines | -11 -10 -10 ---------- Run | Yrd Mat Min Machines Disabled 3 | . 3 . Max in Single Turn 1 | . 1 . Machines Repaired . | . . . Machines Dismantled . | . . . Machines Sabotaged . | . . . Overloaded Fab Kills . | . . . Hacking | -11 -10 -10 --------- Run | Yrd Mat Min Machines Accessed . | . . . Terminals . | . . . Fabricators . | . . . Repair Stations . | . . . Recycling Units . | . . . Scanalyzers . | . . . Garrison Access . | . . . Total Hacks . | . . . Successful . | . . . Failed . | . . . Catastrophic . | . . . Database Lockouts . | . . . Manual . | . . . Terminals . | . . . Fabricators . | . . . Repair Stations . | . . . Recycling Units . | . . . Scanalyzers . | . . . Garrison Access . | . . . Terminal Hacks . | . . . Fabricator Hacks . | . . . Repair Station Hacks . | . . . Recycling Unit Hacks . | . . . Scanalyzer . | . . . Garrison Access Hacks . | . . . Unauthorized Hacks . | . . . Terminals . | . . . Fabricators . | . . . Repair Stations . | . . . Recycling Units . | . . . Scanalyzers . | . . . Garrison Access . | . . . Data Cores Recovered . | . . . Used . | . . . Hacking Detections . | . . . Full Trace Events . | . . . Feedback Events . | . . . Feedback Blocked . | . . . Robot Schematics Acquired . | . . . Robots Built . | . . . Authchips . | . . . Time . | . . . Total Robot Build Rating . | . . . Part Schematics Acquired . | . . . Parts Built . | . . . Authchips . | . . . Time . | . . . Total Part Build Rating . | . . . Parts Repaired . | . . . Time . | . . . Parts Recycled . | . . . Recycled Matter . | . . . Retrieved Matter . | . . . Retrieved Components . | . . . Parts Scanalyzed . | . . . Part Schematics Acquired . | . . . Parts Damaged . | . . . Bothacking | -11 -10 -10 ------------ Run | Yrd Mat Min Used RIF Installer . | . . . Robots Hacked . | . . . Non-combat . | . . . Combat . | . . . Robot Hacks Applied . | . . . Relay Couplers Released . | . . . Fabnet Peak Effective % . | . . . Robots Rewired . | . . . Allies Hacked . | . . . Hacks Repelled . | . . . Allies | -11 -10 -10 -------- Run | Yrd Mat Min Total Allies . | . . . Largest Group . | . . . Highest-Rated Group . | . . . Highest-Rated Ally . | . . . Total Orders . | . . . Ally Attacks . | . . . Total Damage . | . . . Kills . | . . . Allies Corrupted . | . . . Allies Melted . | . . . Intel | -11 -10 -10 ------- Run | Yrd Mat Min Robot Analysis Total . | . . . Derelict Logs Recovered 1 | . . 1 Drone Launches . | . . . Drone Recoveries . | . . . Exploration | -11 -10 -10 ------------- Run | Yrd Mat Min Turns Passed 1052 | 96 236 720 Spaces Moved 580 | 56 120 404 Core 19 | 19 . . Treads . | . . . Legs 561 | 37 120 404 Wheels . | . . . Hover . | . . . Flight . | . . . Fastest Speed 50 | 50 120 120 Average Speed 168 | 140 158 175 Slowest Speed 680 | 190 190 680 Overloaded Moves . | . . . Propulsion Burnouts . | . . . Robots Hopped . | . . . Cave-ins Triggered . | . . . Exploration Rate (%) 27 | 4 22 56 Regions Visited 2 Branch Regions 1 Pre-discovered Areas . | . . . Known Exits Taken . | . . . Unknown Exits Taken 2 | 1 1 . Scrap Searched 1 | . . 1 Spaces Dug . | . . . Terrain Destroyed 100 | . 89 11 Melee . | . . . Projectile . | . . . AOE 100 | . 89 11 Terrain Rammed . | . . . Walls Destroyed . | . . . Machines Disabled . | . . . Actions | -11 -10 -10 --------- Run | Yrd Mat Min Total 636 | 74 141 421 Wait . | . . . Move 578 | 55 119 404 Hop . | . . . Pick Up 18 | 11 3 4 Fast Attach 4 | 1 2 1 Attach 6 | 6 . . Detach 1 | 1 . . Swap 4 | . . 4 Drop 7 | . 2 5 Fire 16 | . 15 1 Melee . | . . . Ram . | . . . Kick 2 | . . 2 Crush . | . . . Escape Stasis . | . . . Rewire . | . . . Trap . | . . . Miscellaneous . | . . . Route ------- -11/Scrapyard -10/Materials -10/Mines History --------- Turn | Location | Event 9 | -11/Scrapyard | Discovered new exit (range 14) 97 | -11/Scrapyard | Entered Materials 303 | -10/Materials | Discovered new exit (range 8) 316 | -10/Materials | Build established: Mutant 333 | -10/Materials | Entered Mines 409 | -10/Mines | Learned location of 1 exit from Materials 468 | -10/Mines | Joined a pair of Derelicts in attacking an 0b10 outpost 780 | -10/Mines | Received a Rocket Launcher from a helpful Derelict 1019 | -10/Mines | Assembled infested the area 1041 | -10/Mines | Core integrity fell below 50% 1044 | -10/Mines | Core integrity fell below 20% 1053 | -10/Mines | Destroyed by D-53 Grenadier with Mini Grenade Launcher Last Messages --------------- 01044_ Aluminum Leg destroyed. 01044_ as-92418 destroyed. 01044_ as-87205 destroyed. 01046_ K-01 Serf destroyed. 01046_ U-05 Engineer lays Concrete. 01047_ The unstable cave ceiling collapses. 01047_ U-05 Engineer lays Concrete. 01047_ U-05 Engineer builds a Wall. 01047_ as-13294 destroyed. 01047_ as-46875 destroyed. 01048_ The unstable cave ceiling collapses. 01048_ U-05 Engineer destroyed. 01050_ The unstable cave ceiling collapses. 01050_ BD-9HO(g) destroyed. 01050_ R-06 Scavenger destroyed. 01050_ U-05 Engineer destroyed. 01051_ The unstable cave ceiling collapses. 01052_ as-90463 destroyed. 01052_ as-83573 destroyed. 01053_ The unstable cave ceiling collapses. Map ----- +----------------------------------------------------+ | ???????????????????????????????????????????????? | | ???????????????????????????????????????????????? | | ???????????????????????????????????????????????? | | ???????????????????????????????????????????????? | | ???????????????????????????????????????????????? | | ???????????????????????????????????????????????? | | ???????????????????????????????????????????????? | | ???????????????????????????????????????????????? | | ???????????????????????????????????????????????? | | ???????????????????????????????????????????????? | | ???????????????????????????????????????????????? | | ???????????????????????????????????????????????? | | ???????????????????????????????????????????????? | | ???????????????????????????????????????????????? | | ???????????????????????????????????????????????? | | ???????????????????????????????????????????????? | | ???????????????????????????????????????????????? | | ????????????????????????###????????????????????? | | ???????????????????????? #?????????#??????????? | | ????????????????????????# #???????? #??????????? | | ????????????????????????# #??????? ###????????? | | ?????????????############ ###???? ???????? | | ?????????????# # #### ??????????? | | ?????????????# """ # ?????????????? | | ?????????????# """ #????????????????? | | ?????????????# """ @ #????????????????? | | ?????????????# #????????????????? | | ?????????????## ##### a#????????????????? | | ###???????????# ##### #????????????????? | | #???????????# a # #????????????????? | | ############# ! ##????????????????? | | % ! #?????????????????? | | ############ ! #?????????????????? | | #??????????# ## !! d #??????????????????? | | #??????????# ## !d! ??????????????????? | | ##??????????# ### *! #??????????????????? | | #???????????# #?##### = #??????????????????? | | ????????????# #####?##|!%% ##??????????????????? | | ????????????# #??###!########??????????????? | | ????????????# ### #??#![% ???????? | | ????????????# #??????#%##########??????????????? | | ????????????# #??????# ###?????????????????????? | | ???????????## #?# #### ##????????????????????? | | ??????????## ### #????????????????????? | | ? ??????## ####### #????????????????????? | | ## ###### ##????????????????????? | | ##????????????????????? | | ## ##???????????????????? | | # ## #?## #### #???????????????????? | | ?#???## #??## #??## #??????????????? | +----------------------------------------------------+ Best States ------------- Heat Dissipation 25 Energy Generation 10 Energy Capacity 250 Matter Stores 300 Matter Capacity 300 Sight Range 16 Terrain Scan Density 10 Armor Coverage 225 Evasion (%) 55 Targeting Accuracy 5 Item Schematics ----------------- None Robot Schematics ------------------ None Fabricated ------------ Nothing Alien Tech Used ----------------- None Achievements -------------- None Challenges ------------ None Game ------ Seed BladeReinforcedSaw Manual? 0 Play Time 00:07:55 Cumulative 6.6 hours Start 2024.05.09 @ 12:56:43 End 2024.05.09 @ 13:04:10 Sessions 1 Manual Loads 0 Difficulty Rogue Special Mode None Game No. 14 Rogue 14 Adventurer 0 Explorer 0 Win Type - Total 0 Types 0/0/0/0/0/0/0/0/0 Lore% 3 Gallery% 13 Achievement% 11 Wizard Run 0 Options --------- Layout 1 ASCII 0 Keyboard 0 Movement Arrows Keybinds 0 Fullscreen 2 Font 32/SmallcapsGlow Map View 50x35 Zoom Use 0% Tactical HUD 1 Map Filters NONE Filters NONE Steam 1 RUN: 08a0ca4c-19ad-4b29-b5ce-608b37c9b13d